bitfinex/quotes_ETHUSD_20251215
["timestamp","ask_amount","ask_price","bid_price","bid_amount"]
[1765805834437,3.19182891,3133.0,3132.2,6.38528828]
[1765805834643,3.19182891,3133.0,3132.2,3.19264414]
[1765805835516,3.19182891,3133.0,3132.2,6.38528828]
[1765805836389,9.57456993,3133.3,3132.1,3.20855316]
[1765805836526,0.405504,3133.2,3131.9,0.58047529]
[1765805836847,0.98597929,3133.2,3131.9,0.58047529]
[1765805837065,0.98597929,3132.6,3131.8,0.004]
[1765805837217,0.405504,3132.4,3131.8,0.004]
[1765805838348,7.10196668,3132.2,3131.8,0.004]
[1765805838536,0.405504,3132.0,3131.6,0.001]
[1765805838717,0.405504,3132.0,3129.3,0.16660211]
[1765805838718,3.352,3130.6,3127.6,0.03197339]
[1765805838916,0.51,3130.5,3128.3,3.19653314]
[1765805839111,0.51,3130.5,3127.8,3.70705417]
[1765805839112,6.52149139,3130.3,3127.8,3.70705417]
[1765805839412,0.49793868,3131.8,3127.7,0.16670068]
[1765805839413,6.40585036,3130.0,3127.7,0.16670068]
[1765805839757,6.40585036,3130.0,3125.9,0.13045515]
[1765805839758,1.49597929,3129.9,3127.2,3.19766247]
[1765805840048,1.49597929,3129.9,3127.0,3.70794258]
[1765805840049,0.01585464,3129.3,3127.0,0.51]
[1765805840213,0.405504,3129.0,3127.2,3.19768834]
[1765805840418,0.98597929,3128.8,3127.1,6.39570208]
[1765805840819,1.49697929,3128.8,3127.1,6.39570208]
[1765805841135,2.28587795,3128.8,3127.1,6.39570208]
[1765805841939,0.98597929,3128.8,3127.1,9.59355312]
[1765805842242,0.58047529,3128.9,3127.1,9.59355312]
[1765805842444,0.98597929,3129.0,3127.1,9.59355312]
[1765805842634,0.511,3128.8,3127.2,0.58047529]
[1765805842818,3.19554782,3129.4,3127.2,0.58047529]
[1765805842819,0.98597929,3130.0,3127.2,0.58047529]
[1765805843141,0.405504,3129.7,3127.3,0.01585464]
[1765805843350,0.58047529,3129.7,3127.3,0.4533351]
[1765805843515,6.39022895,3129.8,3127.3,0.4533351]
[1765805843516,3.19509233,3129.8,3128.0,1.09147529]
[1765805843852,6.38977634,3130.0,3128.0,1.09147529]
[1765805844017,0.69007763,3129.9,3128.0,1.09147529]
[1765805844352,3.19509233,3129.8,3128.2,0.58047529]
[1765805846425,0.511,3129.9,3128.5,0.58047529]
[1765805847458,0.405504,3130.0,3128.5,0.58047529]
[1765805848026,0.404704,3130.0,3128.5,0.58047529]
[1765805848466,0.511,3130.1,3128.7,0.58320829]
[1765805848467,3.19499025,3129.9,3128.7,0.58320829]
[1765805848757,0.511,3130.0,3128.7,0.58320829]
[1765805848966,0.58047529,3130.2,3128.7,0.58320829]
[1765805849139,1.09147529,3130.2,3128.7,0.58320829]
[1765805849344,0.59032318,3130.1,3128.7,0.58320829]
[1765805850164,0.405504,3130.0,3128.7,0.58320829]
[1765805850534,3.1947861,3130.1,3128.9,0.58047529]
[1765805850739,0.58047529,3130.2,3129.0,19.96289]
[1765805850960,0.58047529,3130.2,3129.0,18.957027]
[1765805851267,0.58047529,3130.2,3128.9,1.09147529]
[1765805851563,1.2774462,3130.2,3128.9,1.09147529]
[1765805851945,6.38923382,3130.3,3128.9,1.09147529]
[1765805851946,3.19461691,3130.3,3128.9,1.09147529]
[1765805852151,0.405504,3130.2,3128.9,1.09147529]
[1765805852335,3.19461691,3130.3,3128.9,1.09147529]
[1765805852540,3.70557687,3130.4,3129.1,10.16789659]
[1765805852853,0.002,3130.5,3129.1,13.36370369]
[1765805853154,0.002,3130.5,3129.5,0.58047529]
[1765805853366,0.002,3130.5,3129.6,0.511]
[1765805853540,0.002,3130.5,3129.7,13.823391]
[1765805853853,0.002,3130.5,3129.8,0.58047529]
[1765805854347,0.002,3130.5,3129.7,6.766191]
[1765805854665,0.002,3130.5,3129.8,0.58047529]
[1765805855848,0.002,3130.5,3130.0,0.58047529]
[1765805856063,0.002,3130.5,3129.9,14.243918]
[1765805856064,0.002,3130.5,3129.9,25.063473]
[1765805856364,0.002,3130.5,3130.1,14.901044]
[1765805856564,0.002,3130.5,3130.2,0.511]
[1765805856767,0.002,3130.5,3130.4,0.58047529]
[1765805857263,0.002,3130.5,3130.4,19.71682529]
[1765805857462,0.002,3130.5,3130.4,23.73483429]
[1765805857663,0.002,3130.5,3130.4,22.82482529]
[1765805858072,0.002,3130.5,3130.4,17.24721129]
[1765805858575,0.002,3130.5,3130.4,19.46927629]
[1765805858751,0.002,3130.5,3130.4,22.66375622]
[1765805859360,0.002,3130.5,3130.4,34.18045922]
[1765805859747,0.002,3130.5,3130.4,28.42506722]
[1765805859962,0.002,3130.5,3130.4,18.63226622]
[1765805860366,0.002,3130.5,3130.4,4.18045922]
[1765805860673,0.002,3130.5,3130.4,33.41746722]
[1765805861468,0.002,3130.5,3130.4,34.19631386]
[1765805861639,0.002,3133.2,3130.5,0.405504]
[1765805861842,0.31935991,3133.1,3131.5,0.58047529]
[1765805862084,3.19367415,3133.2,3131.6,0.51]
[1765805862085,9.57702245,3133.2,3131.6,0.51]
[1765805862239,0.405504,3133.0,3131.6,0.51]
[1765805862758,1.00183393,3132.8,3130.5,0.58047529]
[1765805862954,0.01585464,3132.6,3131.2,3.19357765]
[1765805863147,0.01585464,3132.6,3130.6,0.51]
[1765805863148,0.52585464,3132.6,3130.6,0.51]
[1765805863352,0.51,3132.6,3130.9,12.710675]
[1765805863551,0.58047529,3132.8,3131.2,0.58047529]
[1765805863774,0.58047529,3132.8,3131.1,3.19369332]
[1765805863775,0.69643369,3132.7,3131.6,3.19325584]
[1765805864069,0.69643369,3132.7,3131.7,0.58047529]
[1765805864278,2.05499282,3134.1,3131.7,0.58047529]
[1765805864483,2.05499282,3134.1,3131.6,12.77302336]
[1765805864484,6.38527238,3133.2,3131.9,11.926734]
[1765805864647,6.38527238,3133.2,3132.0,1.09047529]
[1765805864839,0.002,3133.2,3132.1,6.38549216]
[1765805865762,0.002,3133.2,3132.1,3.19274608]
[1765805866646,0.002,3133.2,3132.1,6.38549216]
[1765805868150,0.002,3133.2,3132.1,3.19274608]
[1765805868588,0.002,3133.2,3132.1,6.38549216]
[1765805868902,3.19172704,3133.1,3132.1,6.38549216]
[1765805869251,6.38345408,3133.1,3132.1,6.38549216]
[1765805870802,6.38345408,3133.1,3132.1,3.19274608]
[1765805871105,0.98597929,3133.0,3131.6,0.51]
[1765805871417,0.404704,3132.8,3131.6,0.51]
[1765805871713,0.914704,3132.8,3131.6,0.51]
[1765805871872,0.914704,3132.8,3131.3,3.19352698]
[1765805872206,0.914704,3132.8,3131.5,3.19329295]
[1765805872608,0.914704,3132.8,3131.6,3.19323863]
[1765805872919,6.38447296,3132.6,3131.3,3.77403706]
[1765805873679,6.38447296,3132.6,3131.3,10.1611606]
[1765805874610,6.38447296,3132.6,3131.3,6.96759883]
[1765805875290,6.38447296,3132.6,3131.3,10.1611606]
[1765805875686,0.22915782,3132.7,3131.5,0.58047529]
[1765805875893,0.002,3132.6,3131.6,0.58047529]
[1765805876108,0.002,3132.6,3131.4,0.58047529]
[1765805876109,0.002,3132.6,3131.7,0.51]
[1765805876924,0.002,3132.6,3131.8,3.19305191]
[1765805877583,0.002,3132.6,3131.8,6.38610382]
[1765805878011,0.002,3132.6,3131.8,3.19305191]
[1765805878324,0.002,3132.6,3131.8,6.38610382]
[1765805880425,0.002,3132.6,3131.8,3.19305191]
[1765805880638,0.002,3132.6,3131.9,0.03192949]
[1765805880931,0.002,3132.6,3131.9,0.58047529]
[1765805881327,0.002,3132.6,3132.0,6.38569604]
[1765805881528,0.002,3132.6,3132.1,0.51]
[1765805883329,0.002,3132.6,3132.2,6.38528828]
[1765805883737,0.002,3132.6,3132.2,3.19264414]
[1765805884533,0.002,3132.6,3132.2,6.38528828]
[1765805886011,0.002,3132.6,3132.2,3.19264414]
[1765805887348,0.002,3132.6,3132.1,0.51]
[1765805887537,0.002,3132.6,3132.1,3.70274076]
[1765805888311,0.002,3132.6,3132.1,6.89548684]
[1765805893453,3.14545447,3133.4,3132.1,6.89548684]
[1765805893622,1.00370937,3133.3,3132.1,6.89548684]
[1765805894524,1.00290937,3133.3,3132.1,6.89548684]
[1765805895048,6.38325034,3133.2,3132.1,6.89548684]
[1765805895351,0.002,3133.1,3132.1,6.89548684]
[1765805898260,0.002,3133.1,3132.2,0.58047529]
[1765805898759,0.002,3133.1,3132.3,0.03192542]
[1765805898972,0.002,3133.1,3132.4,6.96535589]
[1765805899120,0.002,3133.1,3132.5,0.509]
[1765805901553,0.002,3133.1,3132.6,3.19223648]
[1765805903460,0.002,3133.1,3132.6,6.38447296]
[1765805904747,0.002,3133.1,3132.6,9.57670944]
[1765805905142,0.002,3133.1,3132.8,15.101546]
[1765805905367,0.002,3133.1,3132.9,0.508]
[1765805905570,0.002,3133.1,3133.0,3.19182891]
[1765805906144,0.002,3133.1,3133.0,29.86311048]
[1765805906345,0.002,3133.1,3133.0,33.7723042]
[1765805906557,0.002,3133.1,3133.0,31.3082422]
[1765805907256,0.002,3133.1,3133.0,30.0105912]
[1765805907775,0.002,3133.1,3133.0,9.3475032]
[1765805909346,0.002,3133.1,3133.0,7.9605032]
[1765805909548,0.002,3133.1,3133.0,7.0454042]
[1765805909752,0.002,3133.1,3133.0,3.7723042]
[1765805910377,0.002,3133.1,3133.0,33.7723042]
[1765805910582,0.002,3133.1,3133.0,33.4525872]
[1765805910954,0.002,3133.1,3132.3,3.19249794]
[1765805911150,0.002,3133.1,3132.9,3.19186083]
[1765805911353,0.002,3133.1,3132.8,3.69998815]
[1765805911595,0.002,3133.1,3132.8,4.28046344]
[1765805911979,0.002,3133.1,3132.8,0.508]
[1765805912184,0.002,3133.1,3132.8,3.69999947]
[1765805912385,0.002,3133.1,3132.8,0.508]
[1765805913281,0.002,3133.1,3132.1,3.70171031]
[1765805913501,0.002,3133.1,3132.1,0.509]
[1765805913784,0.002,3133.1,3132.1,3.7017211]
[1765805913959,0.002,3133.1,3132.4,3.1924148]
[1765805914151,0.002,3133.1,3132.5,0.001]
[1765805914483,0.002,3133.1,3132.8,3.19202451]
[1765805914685,0.002,3133.1,3132.7,3.19213458]
[1765805915887,0.002,3133.1,3132.6,0.508]
[1765805916071,0.002,3133.1,3132.6,3.7002174]
[1765805916588,0.002,3133.1,3132.6,0.508]
[1765805917870,0.0012,3133.1,3132.6,3.7002264]
[1765805919086,0.0012,3133.1,3132.6,0.508]
[1765805921459,0.0012,3133.1,3132.6,6.89244226]
[1765805922567,0.0012,3133.1,3132.6,3.70020578]
[1765805922880,0.0012,3133.1,3132.6,0.508]
[1765805925194,0.0012,3133.1,3132.5,0.001]
[1765805930200,0.0012,3133.1,3132.5,0.03292338]
[1765805930363,0.0012,3133.1,3132.6,6.38447296]
[1765805930566,0.0012,3133.1,3132.7,0.508]
[1765805931180,0.0012,3133.1,3132.7,1.08847529]
[1765805933187,0.0012,3133.1,3132.9,0.58047529]
[1765805935078,0.0012,3133.1,3133.0,3.19182891]
[1765805936498,0.0012,3133.1,3133.0,3.7723042]
[1765805941030,0.0012,3133.1,3133.0,4.2793042]
[1765805941190,0.0004,3133.1,3133.0,4.2793042]
[1765805942438,0.0004,3133.1,3133.0,3.69882891]
[1765805946443,0.0004,3133.1,3133.0,15.93509791]
[1765805947834,0.0004,3133.1,3133.0,3.69882891]
[1765805951735,0.0004,3133.1,3132.6,3.19222722]
[1765805951936,0.0004,3133.1,3132.7,3.19211602]
[1765805952439,0.0004,3133.1,3132.6,3.19221556]
[1765805952647,0.0004,3133.1,3132.5,0.508]
[1765805953032,0.0004,3133.1,3132.5,3.70030494]
[1765805953434,0.0004,3133.1,3132.5,0.508]
[1765805953946,0.0004,3133.1,3132.5,3.70031396]
[1765805955035,0.0004,3133.1,3132.5,6.89265234]
[1765805956231,0.0004,3133.1,3132.6,0.03192236]
[1765805956424,0.0004,3133.1,3132.5,6.89265234]
[1765805963558,0.0004,3133.1,3132.6,0.58047529]
[1765805963848,0.0004,3133.1,3132.9,24.632983]
[1765805964033,0.0004,3133.1,3133.0,19.82312429]
[1765805964417,0.0016,3133.3,3133.1,0.58047529]
[1765805964620,0.0016,3133.3,3133.2,30.61239154]
[1765805964850,0.0016,3133.3,3133.2,30.58047529]
[1765805965351,0.0016,3133.3,3133.2,34.17760446]
[1765805966854,0.0016,3133.3,3133.2,4.17760446]
[1765805967023,0.0016,3133.3,3133.2,34.20952071]
[1765805967225,0.0016,3133.3,3133.2,34.17760446]
[1765805968323,0.0016,3133.3,3133.2,24.43891946]
[1765805969125,0.0016,3133.3,3133.2,25.76080546]
[1765805969755,0.0016,3133.3,3133.2,15.66690946]
[1765805970162,0.0016,3133.3,3133.2,34.17760446]
[1765805970536,0.0016,3133.3,3133.2,34.1934591]
[1765805972273,0.0016,3133.3,3133.2,34.81824609]
[1765805972478,0.0016,3133.3,3133.2,34.1934591]
[1765805972777,0.0016,3133.3,3133.2,34.3211512]
[1765805973146,0.0016,3133.3,3133.2,34.64162907]
[1765805973333,0.0016,3133.3,3133.2,34.3211512]
[1765805974862,0.0016,3133.3,3133.2,34.94593819]
[1765805975033,0.0016,3133.3,3133.2,34.3211512]
[1765805976159,0.0016,3133.3,3133.2,4.8271512]
[1765805976337,0.0016,3133.3,3133.2,34.73137535]
[1765805976537,0.0016,3133.3,3133.2,34.6994591]
[1765805980437,0.0016,3133.3,3133.2,24.0265131]
[1765805980764,0.0016,3133.3,3133.2,6.6317361]
[1765805981170,0.0016,3133.3,3133.2,6.03540617]
[1765805981370,0.0016,3133.3,3133.2,9.69408117]
[1765805981566,0.0016,3133.3,3133.2,10.27455646]
[1765805981939,0.0016,3133.3,3133.2,5.34424617]
[1765805982267,0.0016,3133.3,3133.2,3.69762517]
[1765805982474,0.0016,3133.3,3133.2,4.27810046]
[1765805983174,0.0016,3133.3,3133.2,3.69762517]
[1765805983878,0.0016,3133.3,3133.2,32.78202871]
[1765805984083,0.0016,3133.3,3133.2,26.29553046]
[1765805984268,0.0016,3133.3,3133.2,21.18473946]
[1765805984462,0.0016,3133.3,3133.2,20.86556346]
[1765805984879,0.0016,3133.3,3133.2,21.18473946]
[1765805985179,0.0016,3133.3,3133.2,4.68360446]
[1765805985383,0.0016,3133.3,3133.2,7.14573146]
[1765805985877,0.0016,3133.3,3133.2,4.27810046]
[1765805986482,0.0016,3133.3,3133.2,0.506]
[1765805987484,0.0016,3133.3,3133.2,3.69762517]
[1765805987685,0.0008,3133.3,3133.2,3.69762517]
[1765805989058,0.0008,3133.3,3133.2,3.69862517]
[1765805990656,0.0008,3133.3,3133.2,15.79257071]
[1765805990988,0.0008,3133.3,3133.2,15.76065446]
[1765805993276,0.0008,3133.3,3133.2,34.27910046]
[1765805993473,0.0008,3133.3,3133.2,33.57219146]
[1765805993676,0.0008,3133.3,3133.2,29.43945346]
[1765805993978,0.0008,3133.3,3133.2,25.01999246]
[1765805994395,0.0008,3133.3,3133.2,29.80997046]
[1765805994565,0.0008,3133.3,3133.2,29.8258251]
[1765805995297,0.0008,3133.3,3133.2,34.7004591]
[1765806006609,0.0008,3133.3,3133.2,38.5404591]
[1765806007811,0.002,3133.9,3133.6,28.031389]
[1765806008017,0.002,3133.9,3133.8,13.64189529]
[1765806008311,0.002,3133.9,3133.8,14.14789529]
[1765806008710,0.002,3133.9,3133.8,34.68299339]
[1765806009091,0.002,3133.9,3133.8,34.69884803]
[1765806009688,0.002,3133.9,3133.8,4.69884803]
[1765806009907,0.002,3133.9,3133.8,34.73075817]
[1765806010108,0.002,3133.9,3133.8,34.69884803]
[1765806010325,0.002,3135.6,3134.0,0.405504]
[1765806010480,0.002,3135.6,3134.5,30.01585464]
[1765806010686,0.002,3135.6,3134.5,31.10232993]
[1765806010911,0.002,3135.6,3134.5,34.29263141]
[1765806011245,0.002,3135.6,3134.5,34.69813541]
[1765806011516,0.002,3135.6,3134.9,30.58047529]
[1765806011841,0.002,3135.6,3134.9,1.50883393]
[1765806012125,0.002,3135.6,3134.9,31.54073287]
[1765806012298,0.002,3135.6,3134.9,31.50883393]
[1765806012886,0.002,3135.6,3134.9,34.19172834]
[1765806013118,0.002,3135.6,3134.9,34.69772834]
[1765806013424,0.002,3135.6,3134.9,39.09024807]
[1765806014912,0.002,3135.6,3134.9,9.09024807]
[1765806015224,0.002,3135.6,3134.9,39.09024807]
[1765806015590,0.002,3135.6,3135.1,30.0]
[1765806015813,0.002,3135.6,3135.5,34.81387837]
[1765806016011,0.002,3135.6,3135.5,35.90035366]
[1765806016605,0.002,3135.6,3135.5,40.29287339]
[1765806016811,0.002,3135.6,3135.5,31.80571539]
[1765806016997,0.002,3135.6,3135.5,37.94090439]
[1765806017198,0.002,3135.6,3135.5,28.99861166]
[1765806017412,0.002,3135.6,3135.5,26.61950166]
[1765806017817,0.002,3136.3,3135.6,0.98597929]
[1765806018000,0.002,3136.3,3136.2,11.90894402]
[1765806018210,0.002,3136.3,3136.2,12.41594402]
[1765806018624,0.002,3136.3,3136.2,8.70031502]
[1765806019023,0.002,3136.3,3136.2,11.88888717]
[1765806019198,0.002,3136.3,3136.2,6.70740944]
[1765806019398,0.002,3136.3,3136.2,4.27604744]
[1765806020346,0.002,3136.3,3136.0,3.18867706]
[1765806020522,0.002,3136.3,3136.2,3.18857215]
[1765806021111,0.002,3136.3,3136.1,3.69562838]
[1765806021112,0.0012,3136.3,3136.1,3.69562838]
[1765806023311,0.0012,3136.3,3136.2,11.27884501]
[1765806023624,0.0012,3136.3,3136.2,8.97896429]
[1765806024337,0.0012,3136.3,3136.2,22.47705529]
[1765806025141,0.0012,3136.3,3136.2,25.25475144]
[1765806025353,0.0012,3136.3,3136.2,33.57508044]
[1765806025706,0.0012,3136.3,3136.2,33.25990644]
[1765806026317,0.0012,3136.3,3136.2,34.17455144]
[1765806029641,0.0012,3136.3,3136.2,32.91426444]
[1765806030441,0.0012,3136.3,3136.2,33.61175144]
[1765806031539,0.0012,3136.3,3136.2,34.17455144]
[1765806032427,0.0012,3136.3,3136.2,4.17455144]
[1765806032633,0.002,3137.6,3136.4,30.0]
[1765806032811,0.002,3137.6,3136.2,14.1774366]
[1765806032812,0.002,3137.6,3136.5,0.507]
[1765806034217,0.0012,3137.6,3136.5,0.507]
[1765806034518,0.0012,3137.6,3136.7,0.58047529]
[1765806036555,0.0012,3137.6,3136.8,6.3759245]
[1765806036728,0.0012,3137.6,3136.9,0.506]
[1765806036920,0.0012,3137.6,3136.2,0.58047529]
[1765806037124,0.0012,3137.6,3136.6,0.58047529]
[1765806037518,0.0012,3137.6,3136.4,3.18832932]
[1765806037714,0.0012,3137.6,3136.5,0.58047529]
[1765806037918,0.0012,3137.6,3136.4,3.18834269]
[1765806038452,0.406704,3137.6,3136.4,3.18833871]
[1765806038745,0.99678475,3137.5,3136.4,3.18833871]
[1765806040551,9.56205774,3137.4,3136.3,3.69444754]
[1765806041762,6.37470516,3137.4,3136.3,6.88291803]
[1765806044326,6.37470516,3137.4,3136.3,6.88391803]
[1765806044662,6.37470516,3137.4,3136.3,3.69544754]
[1765806044955,1.05587716,3137.3,3136.3,0.507]
[1765806045452,4.39292448,3137.2,3136.3,0.507]
[1765806045646,6.37531478,3137.1,3136.3,0.507]
[1765806046755,9.56297217,3137.1,3136.3,0.507]
[1765806046955,4.39292448,3136.9,3136.3,0.507]
[1765806047160,0.43929245,3136.8,3136.3,0.507]
[1765806047340,0.43929245,3136.8,3136.3,0.001]
[1765806047341,4.39292448,3136.6,3136.3,0.001]
[1765806047661,6.37653434,3136.5,3136.3,0.001]
[1765806048169,10.76945882,3136.5,3136.3,0.001]
[1765806048537,6.37653434,3136.5,3136.3,0.001]
[1765806048740,1.07694588,3136.4,3136.3,0.001]
[1765806048933,5.46987036,3136.4,3136.3,0.001]
[1765806049351,1.07694588,3136.4,3136.3,0.001]
[1765806049834,4.26531471,3136.4,3136.3,0.001]
[1765806050938,10.76587102,3136.4,3136.3,0.001]
[1765806051142,11.34634631,3136.4,3136.3,0.001]
[1765806051348,5.251294,3136.4,3136.3,0.001]
[1765806052058,5.35179,3136.4,3136.3,0.001]
[1765806053162,4.84579,3136.4,3136.3,0.001]
[1765806054980,4.26531471,3136.4,3136.3,0.001]
[1765806057567,4.26451471,3136.4,3136.3,0.001]
[1765806060470,3.18836883,3136.4,3136.3,0.001]
[1765806061041,9.56266734,3137.2,3136.3,0.001]
[1765806061446,0.58047529,3137.1,3136.3,0.001]
[1765806062774,9.563277,3137.0,3136.3,0.001]
[1765806062973,1.01437523,3136.9,3136.3,0.001]
[1765806063550,1.52037523,3136.9,3136.3,0.001]
[1765806064280,1.01437523,3136.9,3136.3,0.001]
[1765806065561,6.3759245,3136.8,3136.3,0.001]
[1765806065764,9.56388675,3136.8,3136.3,0.001]
[1765806066079,1.0578262,3136.7,3136.3,0.001]
[1765806067990,6.37633104,3136.6,3136.3,0.001]
[1765806068850,3.18816552,3136.6,3136.3,0.001]
[1765806069884,3.69377785,3137.0,3136.3,0.001]
[1765806071383,6.88153685,3137.0,3136.3,0.001]
[1765806071581,1.12745315,3136.9,3136.3,0.001]
[1765806071782,3.187759,3137.0,3136.3,0.001]
[1765806073158,6.37490836,3137.3,3136.3,0.001]
[1765806074585,3.18745418,3137.3,3136.4,0.506]
[1765806075191,6.37549882,3137.6,3136.5,3.18826717]
[1765806075362,7.38235657,3137.6,3136.5,3.18826717]
[1765806075558,7.38235657,3137.6,3136.5,6.37653434]
[1765806076073,6.37549882,3137.6,3136.5,10.769529]
[1765806078192,0.0012,3137.6,3136.5,10.769529]
[1765806078485,0.0012,3137.6,3136.8,4.39299466]
[1765806079859,0.0012,3137.6,3136.9,0.506]
[1765806080188,0.0012,3137.6,3137.0,3.187759]
[1765806080892,0.0004,3137.6,3136.9,3.69381155]
[1765806081677,0.0004,3137.6,3137.0,0.58047529]
[1765806082274,0.0004,3137.6,3137.1,6.37531478]
[1765806082599,0.0004,3137.6,3137.1,3.18765739]
[1765806082892,0.0004,3137.6,3137.1,6.37531478]
[1765806083460,0.0004,3137.6,3137.1,3.18765739]
[1765806083681,0.0004,3137.6,3137.1,6.37531478]
[1765806083892,0.0004,3137.6,3137.1,3.18765739]
[1765806084862,0.0004,3137.6,3137.0,6.37548379]
[1765806092805,0.0004,3137.6,3137.0,3.18772479]
[1765806093609,0.0004,3137.6,3137.0,6.37548379]
[1765806093904,0.0004,3137.6,3137.0,3.18872479]
[1765806094608,0.0004,3137.6,3137.0,6.37648379]
[1765806095306,0.0004,3137.6,3137.0,3.18872479]
[1765806095508,0.0004,3137.6,3137.0,6.37648379]
[1765806097017,0.0004,3137.6,3137.0,3.18872479]
[1765806099917,0.0004,3137.6,3137.0,6.37648379]
[1765806100637,0.0004,3137.6,3137.4,8.77789976]
[1765806100927,0.0004,3137.6,3137.5,18.67335122]
[1765806101091,0.0004,3137.6,3137.5,1.08647529]
[1765806101492,0.0004,3137.6,3137.5,5.12134129]
[1765806101687,0.0004,3137.6,3137.5,8.59469929]
[1765806102011,0.0004,3137.6,3137.5,12.73868208]
[1765806102608,0.0004,3137.6,3137.5,20.78991908]
[1765806103023,0.0004,3137.6,3137.5,18.96878208]
[1765806103691,0.0004,3137.6,3137.5,26.22480308]
[1765806104092,0.0016,3138.2,3137.5,32.59930506]
[1765806104299,0.0016,3138.2,3137.5,11.60496006]
[1765806104505,0.0016,3138.2,3137.6,18.571352]
[1765806104720,0.0016,3138.2,3137.6,19.52807159]
[1765806104919,0.0016,3138.2,3137.7,6.37409566]
[1765806105218,0.0016,3138.2,3137.8,0.58047529]
[1765806106919,0.0016,3138.2,3138.0,0.58047529]
[1765806108610,0.0016,3138.2,3138.0,1.53710946]
[1765806108812,0.0016,3138.2,3138.0,0.58047529]
[1765806108994,0.0016,3138.2,3138.0,3.18672094]
[1765806113530,0.0016,3138.2,3138.0,0.58047529]
[1765806113730,0.0016,3138.2,3137.8,0.95672875]
[1765806114126,0.506,3138.1,3137.8,0.95672875]
[1765806114326,0.506,3138.1,3137.1,3.18759077]
[1765806114523,0.506,3138.1,3137.2,3.1874977]
[1765806114709,0.506,3138.1,3137.3,3.18745305]
[1765806114907,0.5076,3138.2,3137.2,3.18751238]
[1765806115225,0.48965499,3138.1,3137.0,0.001]
[1765806115537,3.18674314,3138.0,3137.0,0.001]
[1765806115895,3.18674314,3138.0,3137.0,0.58147529]
[1765806116302,6.37348628,3138.0,3137.0,0.58147529]
[1765806116741,0.48965499,3138.1,3137.0,0.58147529]
[1765806117039,6.3753691,3138.1,3137.0,0.58147529]
[1765806117202,3.18868455,3138.1,3137.0,0.58147529]
[1765806117543,0.002,3138.1,3137.2,0.58047529]
[1765806119632,0.002,3138.1,3137.3,6.37490836]
[1765806120516,0.002,3138.1,3137.3,3.18745418]
[1765806120859,0.63767511,3138.0,3137.3,6.37490836]
[1765806121720,0.002,3138.1,3137.3,6.37490836]
[1765806121916,0.002,3138.1,3137.4,0.58047529]
[1765806122137,0.002,3138.1,3137.4,4.96942517]
[1765806122364,0.002,3138.1,3137.6,0.58047529]
[1765806122523,0.002,3138.1,3137.8,30.0]
[1765806123078,0.002,3138.1,3137.8,15.587928]
[1765806123247,0.002,3138.1,3137.9,0.12755122]
[1765806123863,0.002,3138.1,3138.0,3.18674314]
[1765806124224,0.002,3138.1,3137.9,3.18680389]
[1765806125423,0.002,3138.1,3137.9,6.37364859]
[1765806125633,0.002,3138.1,3137.9,3.18680389]
[1765806126377,0.002,3138.1,3137.8,3.89496106]
[1765806126666,0.002,3138.1,3137.8,3.76739927]
[1765806127341,0.0012,3138.1,3137.8,3.76739927]
[1765806127667,0.0012,3138.1,3137.8,6.95434553]
[1765806128569,0.0012,3138.1,3137.9,13.75372]
[1765806129168,0.0012,3138.1,3137.8,6.95434553]
[1765806130066,0.0012,3138.1,3137.8,3.76739927]
[1765806132344,0.0012,3138.1,3137.8,3.18692737]
[1765806133137,0.0012,3138.1,3137.8,6.37387363]
[1765806134177,0.0012,3138.1,3137.8,6.37487363]
[1765806134977,0.0012,3138.1,3137.8,3.18792737]
[1765806135277,0.0012,3138.1,3137.8,0.001]
[1765806135757,0.49097499,3138.1,3137.8,0.001]
[1765806136174,6.37348628,3138.0,3137.8,0.001]
[1765806141110,0.058978,3137.9,3137.8,0.001]
[1765806142000,3.2458227,3137.9,3137.8,0.001]
[1765806142575,7.63477258,3137.9,3137.8,0.001]
[1765806142807,8.81820712,3137.9,3137.8,0.001]
[1765806143210,4.42925724,3137.9,3137.8,0.001]
[1765806147019,4.93525724,3137.9,3137.8,0.001]
[1765806148042,0.058978,3137.9,3137.8,0.001]
[1765806150792,0.058178,3137.9,3137.8,4.39144985]
[1765806151187,0.058178,3137.9,3137.8,0.001]
[1765806151502,0.058178,3137.9,3137.8,27.03707314]
[1765806152102,0.058178,3137.9,3137.8,21.53646414]
[1765806152303,0.058178,3137.9,3137.8,24.7234104]
[1765806152493,0.058178,3137.9,3137.8,8.1588714]
[1765806152819,0.058178,3137.9,3137.8,29.5874924]
[1765806153515,0.058178,3137.9,3137.8,29.5287504]
[1765806154615,0.058178,3137.9,3137.8,29.8727504]
[1765806154928,0.058178,3137.9,3137.8,6.71976455]
[1765806155216,0.058178,3137.9,3137.8,3.76842155]
[1765806155433,0.058178,3137.9,3137.8,0.001]
[1765806161400,3.2450227,3137.9,3137.8,0.001]
[1765806161596,3.88831923,3137.9,3137.8,0.001]
[1765806163818,0.058178,3137.9,3137.8,0.001]
[1765806164009,3.2450227,3137.9,3137.8,0.001]
[1765806166133,3.6505267,3137.9,3137.8,0.001]
[1765806167399,0.405504,3137.8,3137.0,3.16741295]
[1765806169225,0.060178,3137.9,3137.3,0.58047529]
[1765806169526,0.060178,3137.9,3137.4,0.506]
[1765806170942,0.060178,3137.9,3137.5,15.882659]
[1765806171104,0.060178,3137.9,3137.5,3.714177]
[1765806171308,0.060178,3137.9,3137.6,6.37429882]
[1765806171518,0.060178,3137.9,3137.8,30.0]
[1765806171743,0.060178,3137.9,3137.8,30.58047529]
[1765806172115,0.060178,3137.9,3137.8,28.65998929]
[1765806172521,0.060178,3137.9,3137.8,28.82114029]
[1765806173312,0.060178,3137.9,3137.8,32.00808655]
[1765806173525,0.060178,3137.9,3137.8,32.29996355]
[1765806173939,0.059378,3137.9,3137.8,32.29996355]
[1765806174126,0.059378,3137.9,3137.8,31.98124955]